fUSD/lending_fUSD_20260616
["ID","MTS","AMOUNT","RATE_DAILY","PERIOD"]
[425205073,1781577046000,-89910.38,0.00018356,2]
[425205041,1781577046000,-1865.36488656,0.00017514,2]
[425205075,1781577046000,-188.91954552,0.0001837,2]
[425205050,1781577046000,-151.0,0.00017613,2]
[425205018,1781577046000,-799.161198,0.00016438,2]
[425205035,1781577046000,-1641.94,0.000172,2]
[425205017,1781577046000,-799.161198,0.00016438,2]
[425205019,1781577046000,-799.161198,0.00016438,2]
[425205010,1781577046000,-799.161198,0.00016438,2]
[425205101,1781577046000,-175.19317243,0.00018522,2]
[425205021,1781577046000,-799.161196,0.00016438,2]
[425205012,1781577046000,-799.161198,0.00016438,2]
[425205014,1781577046000,-799.161198,0.00016438,2]
[425205023,1781577046000,-900.0,0.00016438,2]
[425205024,1781577046000,-152.0,0.00016438,2]
[425205025,1781577046000,-152.0,0.00016438,2]
[425205026,1781577046000,-2049.5,0.00016474,2]
[425205013,1781577046000,-799.161198,0.00016438,2]
[425205033,1781577046000,-290.913325,0.00017162,2]
[425205039,1781577046000,-244.568021,0.0001738,2]
[425205027,1781577046000,-263.201929,0.00016759,7]
[425205043,1781577046000,-1053.2,0.00017572,2]
[425205038,1781577046000,-310.0,0.000173,2]
[425205047,1781577046000,-244.568021,0.00017586,2]
[425205031,1781577046000,-161.6881792,0.00016933,2]
[425205036,1781577046000,-244.568021,0.00017277,2]
[425205030,1781577046000,-1948.45,0.000169,7]
[425205029,1781577046000,-446.14,0.00016767,2]
[425205034,1781577046000,-244.568021,0.00017174,2]
[425205032,1781577046000,-1798.80895522,0.00016966,2]
[425205028,1781577046000,-371.558681,0.00016759,7]
[425205157,1781577047000,-1776.30922209,0.0001861,2]
[425205148,1781577047000,-500.0,0.0001861,2]
[425205159,1781577047000,-1842.0326633,0.0001861,2]
[425205155,1781577047000,-500.0,0.0001861,2]
[425205154,1781577047000,-2005.9555727,0.0001861,2]
[425205153,1781577047000,-151.0,0.0001861,2]
[425205151,1781577047000,-500.0,0.0001861,2]
[425205149,1781577047000,-1651.81367706,0.0001861,2]
[425205146,1781577047000,-1592.87721992,0.0001861,2]
[425205156,1781577047000,-500.0,0.0001861,2]
[425205161,1781577047000,-500.0,0.0001861,2]
[425205158,1781577047000,-151.0,0.0001861,2]
[425205170,1781577047000,-151.0,0.0001861,2]
[425205152,1781577047000,-1712.93078311,0.0001861,2]
[425205162,1781577047000,-151.0,0.0001861,2]
[425205163,1781577047000,-151.0,0.0001861,2]
[425205171,1781577047000,-152.0,0.0001861,2]
[425205172,1781577047000,-151.0,0.0001861,2]
[425205164,1781577047000,-152.0,0.0001861,2]
[425205168,1781577047000,-500.0,0.0001861,2]
[425205167,1781577047000,-500.0,0.0001861,2]
[425205165,1781577047000,-151.0,0.0001861,2]
[425205169,1781577047000,-1980.8648231,0.0001861,2]
[425205173,1781577047000,-500.0,0.0001861,2]
[425205166,1781577047000,-1910.18787185,0.0001861,2]
[425205147,1781577047000,-151.0,0.0001861,2]
[425205160,1781577047000,-500.0,0.0001861,2]
[425205150,1781577047000,-500.0,0.0001861,2]
[425205107,1781577047000,-199.46955668,0.000186,2]
[425205142,1781577047000,-500.0,0.0001861,2]
[425205103,1781577047000,-175.19317243,0.00018577,2]
[425205174,1781577047000,-2054.15682156,0.0001861,2]
[425205108,1781577047000,-6824.57352181,0.000186,2]
[425205110,1781577047000,-500.0,0.0001861,2]
[425205112,1781577047000,-155.14040384,0.0001861,2]
[425205124,1781577047000,-1148.61238259,0.0001861,2]
[425205114,1781577047000,-204.16886845,0.0001861,2]
[425205105,1781577047000,-6909.50882354,0.000186,2]
[425205116,1781577047000,-1112.24517754,0.0001861,2]
[425205118,1781577047000,-1030.0,0.0001861,2]
[425205120,1781577047000,-1068.11,0.0001861,2]
[425205122,1781577047000,-1107.63007,0.0001861,2]
[425205126,1781577047000,-151.0,0.0001861,2]
[425205139,1781577047000,-500.0,0.0001861,2]
[425205128,1781577047000,-1191.11104074,0.0001861,2]
[425205133,1781577047000,-1328.27659266,0.0001861,2]
[425205138,1781577047000,-1428.38747117,0.0001861,2]
[425205136,1781577047000,-1377.42282658,0.0001861,2]
[425205134,1781577047000,-151.0,0.0001861,2]
[425205131,1781577047000,-1235.18214925,0.0001861,2]
[425205130,1781577047000,-151.0,0.0001861,2]
[425205135,1781577047000,-151.0,0.0001861,2]
[425205132,1781577047000,-1280.88388877,0.0001861,2]
[425205141,1781577047000,-151.0,0.0001861,2]
[425205140,1781577047000,-1481.2378076,0.0001861,2]
[425205143,1781577047000,-1536.04360648,0.0001861,2]
[425205144,1781577047000,-151.0,0.0001861,2]
[425205145,1781577047000,-500.0,0.0001861,2]
[425205176,1781577047000,-151.0,0.0001861,2]
[425205137,1781577047000,-151.0,0.0001861,2]
[425205175,1781577047000,-500.0,0.0001861,2]
[425205209,1781577047000,-151.0,0.0001861,2]
[425205210,1781577047000,-152.0,0.0001861,2]
[425205208,1781577047000,-151.0,0.0001861,2]
[425205212,1781577047000,-151.0,0.0001861,2]
[425205223,1781577047000,-175.19317243,0.00018797,2]
[425205224,1781577047000,-6909.50882354,0.000188,2]
[425205222,1781577047000,-151.0,0.00018775,2]
[425205214,1781577047000,-175.19317243,0.00018632,2]
[425205221,1781577047000,-175.19317243,0.00018742,2]
[425205213,1781577047000,-271.48225579,0.0001861,2]
[425205216,1781577047000,-151.0,0.00018665,2]
[425205218,1781577047000,-926.5054416,0.000187,2]
[425205219,1781577047000,-151.0,0.0001872,2]
[425205220,1781577047000,-278.57,0.0001872,2]
[425205215,1781577047000,-199.2024881,0.00018664,2]
[425205217,1781577047000,-175.19317243,0.00018687,2]
[425205225,1781577047000,-199.46955668,0.000188,2]
[425205177,1781577047000,-500.0,0.0001861,2]
[425205233,1781577047000,-175.19317243,0.00018962,2]
[425205227,1781577047000,-926.5054416,0.000188,2]
[425205230,1781577047000,-151.0,0.00018885,2]
[425205235,1781577047000,-151.0,0.00018997,2]
[425205228,1781577047000,-151.0,0.0001883,2]
[425205229,1781577047000,-175.19317243,0.00018852,2]
[425205234,1781577047000,-151.0,0.00018995,2]
[425205232,1781577047000,-151.0,0.0001894,2]
[425205226,1781577047000,-6824.57352181,0.000188,2]
[425205205,1781577047000,-500.0,0.0001861,2]
[425205206,1781577047000,-151.0,0.0001861,2]
[425205231,1781577047000,-175.19317243,0.00018907,2]
[425205203,1781577047000,-152.0,0.0001861,2]
[425205200,1781577047000,-151.0,0.0001861,2]
[425205181,1781577047000,-151.0,0.0001861,2]
[425205183,1781577047000,-152.0,0.0001861,2]
[425205180,1781577047000,-500.0,0.0001861,2]
[425205179,1781577047000,-151.0,0.0001861,2]
[425205178,1781577047000,-152.0,0.0001861,2]
[425205182,1781577047000,-500.0,0.0001861,2]
[425205184,1781577047000,-151.0,0.0001861,2]
[425205188,1781577047000,-152.0,0.0001861,2]
[425205196,1781577047000,-151.0,0.0001861,2]
[425205189,1781577047000,-151.0,0.0001861,2]
[425205187,1781577047000,-151.0,0.0001861,2]
[425205186,1781577047000,-500.0,0.0001861,2]
[425205185,1781577047000,-500.0,0.0001861,2]
[425205191,1781577047000,-151.0,0.0001861,2]
[425205211,1781577047000,-151.0,0.0001861,2]
[425205198,1781577047000,-151.0,0.0001861,2]
[425205204,1781577047000,-151.0,0.0001861,2]
[425205207,1781577047000,-152.0,0.0001861,2]
[425205201,1781577047000,-500.0,0.0001861,2]
[425205199,1781577047000,-152.0,0.0001861,2]
[425205202,1781577047000,-151.0,0.0001861,2]
[425205194,1781577047000,-500.0,0.0001861,2]
[425205192,1781577047000,-152.0,0.0001861,2]
[425205193,1781577047000,-151.0,0.0001861,2]
[425205190,1781577047000,-500.0,0.0001861,2]
[425205197,1781577047000,-500.0,0.0001861,2]
[425205195,1781577047000,-151.0,0.0001861,2]
[425205254,1781577048000,-151.0,0.00019178,2]
[425205262,1781577048000,-6824.57352181,0.000194,2]
[425205260,1781577048000,-151.0,0.00019215,2]
[425205259,1781577048000,-926.5054416,0.000192,2]
[425205256,1781577048000,-6909.50882354,0.000192,2]
[425205263,1781577048000,-926.5054416,0.000194,2]
[425205273,1781577048000,-6824.57352181,0.000197,2]
[425205266,1781577048000,-200.0,0.00019563,2]
[425205272,1781577048000,-6909.50882354,0.000197,2]
[425205265,1781577048000,-299.798249,0.00019452,2]
[425205264,1781577048000,-178.01255851,0.00019445,2]
[425205267,1781577048000,-151.0,0.00019563,2]
[425205270,1781577048000,-6909.50882354,0.000196,2]
[425205271,1781577048000,-6824.57352181,0.000196,2]
[425205269,1781577048000,-202.89548,0.00019567,2]
[425205257,1781577048000,-199.46955668,0.000192,2]
[425205268,1781577048000,-151.0,0.00019563,2]
[425205251,1781577048000,-2080.17592889,0.00019158,2]
[425205241,1781577048000,-200.0,0.00019015,2]
[425205258,1781577048000,-6824.57352181,0.000192,2]
[425205237,1781577048000,-6909.50882354,0.00019,2]
[425205236,1781577048000,-151.0,0.00018997,2]
[425205239,1781577048000,-6824.57352181,0.00019,2]
[425205249,1781577048000,-518.5,0.00019158,2]
[425205238,1781577048000,-199.46955668,0.00019,2]
[425205240,1781577048000,-926.5054416,0.00019,2]
[425205242,1781577048000,-151.0,0.00019015,2]
[425205243,1781577048000,-151.0,0.00019015,2]
[425205245,1781577048000,-151.0,0.0001905,2]
[425205247,1781577048000,-1641.94,0.000191,2]
[425205246,1781577048000,-175.19317249,0.00019072,2]
[425205244,1781577048000,-175.19317243,0.00019017,2]
[425205248,1781577048000,-151.0,0.00019105,2]
[425205250,1781577048000,-1112.24517754,0.00019158,2]
[425205253,1781577048000,-160.93281423,0.00019178,2]
[425205261,1781577048000,-6909.50882354,0.000194,2]
[425205255,1781577048000,-151.0,0.00019178,2]
[425205252,1781577048000,-151.0,0.0001916,2]
[425205278,1781577048000,-6909.50882354,0.000199,2]
[425205274,1781577048000,-537.6845,0.00019706,2]
[425205277,1781577048000,-5016.53462597,0.000199,3]
[425205299,1781577048000,-154.0,0.0002,2]
[425205308,1781577048000,-275180.0,0.00020074,2]
[425205301,1781577048000,-19765.62,0.0002,2]
[425205304,1781577048000,-229.0,0.0002,2]
[425205300,1781577048000,-215.0,0.0002,2]
[425205309,1781577048000,-6909.50882354,0.000201,2]
[425205302,1781577048000,-1317.0,0.0002,2]
[425205310,1781577048000,-6824.57352181,0.000201,2]
[425205305,1781577048000,-2363.0,0.0002,2]
[425205306,1781577048000,-291430.0,0.00020068,2]
[425205307,1781577048000,-260524.6123948,0.00020068,2]
[425205303,1781577048000,-2000.0,0.0002,2]
[425205312,1781577048000,-151.0,0.00020111,2]
[425205311,1781577048000,-200.0,0.00020111,2]
[425205313,1781577048000,-167.65389276,0.00020111,2]
[425205314,1781577048000,-270047.5,0.00020143,2]
[425205276,1781577048000,-2157.14243826,0.00019706,2]
[425205295,1781577048000,-940.0,0.0002,2]
[425205294,1781577048000,-247.0,0.0002,2]
[425205322,1781577048000,-6824.57352181,0.000203,2]
[425205291,1781577048000,-214.24,0.0002,2]
[425205279,1781577048000,-6824.57352181,0.000199,2]
[425205292,1781577048000,-400.0,0.0002,2]
[425205280,1781577048000,-2049.5,0.00019968,2]
[425205283,1781577048000,-3000.33749802,0.0002,7]
[425205286,1781577048000,-150.0,0.0002,30]
[425205282,1781577048000,-1066.0,0.0002,2]
[425205275,1781577048000,-1112.24517754,0.00019706,2]
[425205285,1781577048000,-600.79714357,0.0002,2]
[425205281,1781577048000,-1248.0,0.0002,2]
[425205288,1781577048000,-866.0,0.0002,2]
[425205287,1781577048000,-547.0,0.0002,2]
[425205298,1781577048000,-1379.0,0.0002,2]
[425205289,1781577048000,-784.43422086,0.0002,2]
[425205290,1781577048000,-2517.661385,0.0002,2]
[425205293,1781577048000,-5978.0,0.0002,2]
[425205297,1781577048000,-317.0,0.0002,2]
[425205284,1781577048000,-37957.69444577,0.0002,2]
[425205296,1781577048000,-283.0,0.0002,2]
[425205402,1781577049000,-169.88,0.00022232,2]
[425205400,1781577049000,-1641.94,0.000221,7]
[425205397,1781577049000,-1232.395,0.00022014,2]
[425205394,1781577049000,-2363.0,0.00022,2]
[425205395,1781577049000,-387.0,0.00022014,2]
[425205392,1781577049000,-1317.0,0.00022,2]
[425205396,1781577049000,-1372.71,0.00022014,2]
[425205391,1781577049000,-215.0,0.00022,2]
[425205390,1781577049000,-154.0,0.00022,2]
[425205399,1781577049000,-529.38622754,0.000221,7]
[425205401,1781577049000,-169.88,0.00022232,2]
[425205398,1781577049000,-165.515,0.00022014,2]
[425205393,1781577049000,-229.0,0.00022,2]
[425205411,1781577049000,-303.7954612,0.00022407,2]
[425205407,1781577049000,-500.0,0.00022379,2]
[425205404,1781577049000,-200.0,0.00022303,2]
[425205405,1781577049000,-1036.0,0.00022308,2]
[425205410,1781577049000,-328.77335785,0.00022407,2]
[425205412,1781577049000,-303.79546118,0.00022407,2]
[425205408,1781577049000,-328.77335785,0.00022407,2]
[425205406,1781577049000,-1604.8,0.00022353,2]
[425205409,1781577049000,-328.77335785,0.00022407,2]
[425205413,1781577049000,-303.79546118,0.00022407,2]
[425205422,1781577049000,-839.78671511,0.00022536,2]
[425205415,1781577049000,-620.59379053,0.00022407,2]
[425205417,1781577049000,-1112.24517754,0.00022446,2]
[425205423,1781577049000,-839.78671511,0.00022579,2]
[425205387,1781577049000,-940.0,0.00022,2]
[425205403,1781577049000,-219.97014012,0.00022262,2]
[425205389,1781577049000,-317.0,0.00022,2]
[425205373,1781577049000,-200.0,0.00021905,2]
[425205382,1781577049000,-1000.0,0.00022,12]
[425205416,1781577049000,-819.0,0.0002244,7]
[425205359,1781577049000,-1112.24517754,0.0002135,2]
[425205360,1781577049000,-2405.55389863,0.0002135,2]
[425205358,1781577049000,-151.0,0.00021349,2]
[425205371,1781577049000,-869.3812221,0.000219,2]
[425205363,1781577049000,-869.3812221,0.000216,2]
[425205372,1781577049000,-250.0,0.00021905,2]
[425205370,1781577049000,-2494.55939288,0.00021898,2]
[425205362,1781577049000,-1623.71,0.000214,7]
[425205361,1781577049000,-869.3812221,0.000214,2]
[425205365,1781577049000,-19765.62,0.00021655,2]
[425205364,1781577049000,-1036.0,0.00021623,2]
[425205366,1781577049000,-500.0,0.00021727,2]
[425205388,1781577049000,-283.0,0.00022,2]
[425205369,1781577049000,-1112.24517754,0.00021898,2]
[425205368,1781577049000,-150.0,0.00021762,2]
[425205374,1781577049000,-150.0,0.00021905,2]
[425205377,1781577049000,-190.0,0.00021905,2]
[425205379,1781577049000,-150.0,0.00021918,2]
[425205376,1781577049000,-248.399,0.00021905,2]
[425205378,1781577049000,-5000.0,0.00021918,2]
[425205381,1781577049000,-6078.0,0.00021942,2]
[425205380,1781577049000,-3646.0,0.00021942,2]
[425205383,1781577049000,-817.05794618,0.00022,7]
[425205384,1781577049000,-2517.661385,0.00022,2]
[425205385,1781577049000,-450.0,0.00022,2]
[425205386,1781577049000,-247.0,0.00022,2]
[425205375,1781577049000,-150.0,0.00021905,2]
[425205367,1781577049000,-200.0,0.00021755,2]
[425205418,1781577049000,-2586.85809042,0.00022446,2]
[425205424,1781577049000,-202.41649353,0.00022592,2]
[425205419,1781577049000,-1694.28,0.00022466,2]
[425205455,1781577049000,-19765.62,0.00023309,7]
[425205458,1781577049000,-1112.24517754,0.00023542,2]
[425205460,1781577049000,-250.0,0.00023562,5]
[425205459,1781577049000,-2781.82699784,0.00023542,2]
[425205457,1781577049000,-1175.96313014,0.000235,2]
[425205456,1781577049000,-200.0,0.00023399,2]
[425205463,1781577049000,-500.0,0.00023742,2]
[425205461,1781577049000,-1641.94,0.000236,7]
[425205462,1781577049000,-198.0,0.00023606,10]
[425205465,1781577049000,-200.0,0.00023947,2]
[425205475,1781577049000,-229.0,0.00024,2]
[425205464,1781577049000,-913.06141638,0.000239,2]
[425205467,1781577049000,-500.0,0.00024,2]
[425205454,1781577049000,-605742.23253022,0.00023302,2]
[425205468,1781577049000,-247.0,0.00024,2]
[425205471,1781577049000,-283.0,0.00024,2]
[425205466,1781577049000,-2517.661385,0.00024,2]
[425205472,1781577049000,-154.0,0.00024,2]
[425205473,1781577049000,-215.0,0.00024,2]
[425205474,1781577049000,-1317.0,0.00024,2]
[425205469,1781577049000,-940.0,0.00024,2]
[425205476,1781577049000,-2363.0,0.00024,2]
[425205477,1781577049000,-152.0,0.00024073,3]
[425205478,1781577049000,-151.0,0.00024088,2]
[425205483,1781577049000,-500.0,0.00024164,2]
[425205480,1781577049000,-2884.75459676,0.0002409,2]
[425205479,1781577049000,-1112.24517754,0.0002409,2]
[425205482,1781577049000,-331.83,0.0002411,2]
[425205470,1781577049000,-317.0,0.00024,2]
[425205452,1781577049000,-150.0,0.00023288,2]
[425205481,1781577049000,-154.0,0.00024102,10]
[425205453,1781577049000,-300.0,0.00023301,2]
[425205414,1781577049000,-620.59379055,0.00022407,2]
[425205421,1781577049000,-379.23,0.00022466,2]
[425205420,1781577049000,-776.55,0.00022466,2]
[425205425,1781577049000,-839.78671511,0.00022601,2]
[425205428,1781577049000,-839.78671511,0.00022763,2]
[425205432,1781577049000,-200.0,0.00022851,2]
[425205431,1781577049000,-839.78671511,0.00022838,2]
[425205427,1781577049000,-278.57,0.00022691,2]
[425205451,1781577049000,-158.57,0.00023288,2]
[425205435,1781577049000,-839.78671511,0.00022892,2]
[425205429,1781577049000,-839.78671511,0.00022781,2]
[425205434,1781577049000,-281.256045,0.00022881,7]
[425205436,1781577049000,-369.0,0.00022993,2]
[425205430,1781577049000,-839.78671511,0.00022785,2]
[425205426,1781577049000,-104575.11,0.00022691,2]
[425205433,1781577049000,-298.5,0.00022867,2]
[425205446,1781577049000,-1317.0,0.00023,2]
[425205437,1781577049000,-1112.24517754,0.00022994,2]
[425205448,1781577049000,-2363.0,0.00023,2]
[425205447,1781577049000,-229.0,0.00023,2]
[425205445,1781577049000,-215.0,0.00023,2]
[425205438,1781577049000,-2682.57183977,0.00022994,2]
[425205444,1781577049000,-154.0,0.00023,2]
[425205441,1781577049000,-940.0,0.00023,2]
[425205440,1781577049000,-247.0,0.00023,2]
[425205443,1781577049000,-317.0,0.00023,2]
[425205449,1781577049000,-500.0,0.0002305,2]
[425205450,1781577049000,-160.0,0.00023287,2]
[425205439,1781577049000,-2517.661385,0.00023,2]
[425205442,1781577049000,-283.0,0.00023,2]
[425205517,1781577050000,-202.02472,0.00024658,2]
[425205526,1781577050000,-202.02472,0.00024658,2]
[425205536,1781577050000,-151.0,0.00024658,2]
[425205525,1781577050000,-202.02472,0.00024658,2]
[425205516,1781577050000,-202.02472,0.00024658,2]
[425205522,1781577050000,-202.02472,0.00024658,2]
[425205515,1781577050000,-274.074972,0.00024658,2]
[425205520,1781577050000,-202.02472,0.00024658,2]
[425205518,1781577050000,-202.02472,0.00024658,2]
[425205524,1781577050000,-202.02472,0.00024658,2]
[425205523,1781577050000,-202.02472,0.00024658,2]
[425205519,1781577050000,-202.02472,0.00024658,2]
[425205532,1781577050000,-202.02472,0.00024658,2]
[425205544,1781577050000,-151.0,0.00024658,2]
[425205527,1781577050000,-202.02472,0.00024658,2]
[425205531,1781577050000,-202.02472,0.00024658,2]
[425205528,1781577050000,-202.02472,0.00024658,2]
[425205530,1781577050000,-202.02472,0.00024658,2]
[425205529,1781577050000,-202.02472,0.00024658,2]
[425205535,1781577050000,-202.024717,0.00024658,2]
[425205534,1781577050000,-202.02472,0.00024658,2]
[425205537,1781577050000,-151.0,0.00024658,2]
[425205539,1781577050000,-151.0,0.00024658,2]
[425205549,1781577050000,-152.908468,0.00024658,2]
[425205547,1781577050000,-151.0,0.00024658,2]
[425205543,1781577050000,-151.0,0.00024658,2]
[425205521,1781577050000,-202.02472,0.00024658,2]
[425205533,1781577050000,-202.02472,0.00024658,2]
[425205514,1781577050000,-151.0,0.00024658,2]
[425205497,1781577050000,-151.0,0.00024658,2]
[425205511,1781577050000,-151.0,0.00024658,2]
[425205538,1781577050000,-151.0,0.00024658,2]
[425205484,1781577050000,-300.0,0.00024232,2]
[425205485,1781577050000,-1604.8,0.00024324,2]
[425205486,1781577050000,-535.67818913,0.00024352,2]
[425205487,1781577050000,-500.0,0.00024454,2]
[425205489,1781577050000,-169.14212211,0.0002455,15]
[425205488,1781577050000,-200.0,0.00024495,2]
[425205499,1781577050000,-151.0,0.00024658,2]
[425205491,1781577050000,-501.37309986,0.00024576,2]
[425205500,1781577050000,-151.0,0.00024658,2]
[425205490,1781577050000,-152.0,0.00024565,4]
[425205492,1781577050000,-1112.24517762,0.00024638,2]
[425205493,1781577050000,-2991.49051684,0.00024638,2]
[425205495,1781577050000,-300.0,0.00024657,2]
[425205498,1781577050000,-151.0,0.00024658,2]
[425205496,1781577050000,-919.36,0.00024658,2]
[425205501,1781577050000,-151.0,0.00024658,2]
[425205503,1781577050000,-151.0,0.00024658,2]
[425205504,1781577050000,-151.0,0.00024658,2]
[425205502,1781577050000,-151.0,0.00024658,2]
[425205510,1781577050000,-151.0,0.00024658,2]
[425205512,1781577050000,-151.0,0.00024658,2]
[425205505,1781577050000,-151.0,0.00024658,2]
[425205508,1781577050000,-151.0,0.00024658,2]
[425205506,1781577050000,-151.0,0.00024658,2]
[425205509,1781577050000,-151.0,0.00024658,2]
[425205507,1781577050000,-151.0,0.00024658,2]
[425205513,1781577050000,-151.0,0.00024658,2]
[425205550,1781577050000,-714.135467,0.00024658,2]
[425205494,1781577050000,-501.37309986,0.00024656,2]
[425205541,1781577050000,-151.0,0.00024658,2]
[425205587,1781577050000,-3646.0,0.00024942,2]
[425205581,1781577050000,-156.11367125,0.000249,7]
[425205582,1781577050000,-150.0,0.00024905,2]
[425205585,1781577050000,-150.0,0.00024905,2]
[425205580,1781577050000,-150.0,0.000249,7]
[425205584,1781577050000,-150.0,0.00024905,2]
[425205583,1781577050000,-150.0,0.00024905,2]
[425205578,1781577050000,-150.0,0.000249,7]
[425205579,1781577050000,-150.0,0.000249,7]
[425205589,1781577050000,-1187.91,0.00024951,2]
[425205588,1781577050000,-6078.0,0.00024942,2]
[425205590,1781577050000,-19765.62,0.00024964,7]
[425205591,1781577050000,-165.0,0.00024986,2]
[425205586,1781577050000,-150.0,0.00024905,2]
[425205592,1781577050000,-1000.0,0.00025,12]
[425205604,1781577050000,-1329.0,0.00025,2]
[425205599,1781577050000,-949.47117312,0.00025,2]
[425205597,1781577050000,-8057.36996626,0.00025,2]
[425205594,1781577050000,-41027.98923796,0.00025,7]
[425205595,1781577050000,-910873.73770344,0.00025,2]
[425205598,1781577050000,-266.22191977,0.00025,2]
[425205603,1781577050000,-219.64759093,0.00025,2]
[425205600,1781577050000,-323.17744233,0.00025,2]
[425205606,1781577050000,-2370.86918073,0.00025,2]
[425205605,1781577050000,-242.55341389,0.00025,2]
[425205602,1781577050000,-172.45471968,0.00025,2]
[425205601,1781577050000,-298.96437886,0.00025,2]
[425205540,1781577050000,-151.0,0.00024658,2]
[425205593,1781577050000,-848.03299203,0.00025,2]
[425205577,1781577050000,-150.0,0.000249,7]
[425205596,1781577050000,-1258.91529668,0.00025,2]
[425205573,1781577050000,-21253.23,0.000248,2]
[425205548,1781577050000,-151.0,0.00024658,2]
[425205576,1781577050000,-150.0,0.000249,7]
[425205542,1781577050000,-151.0,0.00024658,2]
[425205546,1781577050000,-151.0,0.00024658,2]
[425205545,1781577050000,-151.0,0.00024658,2]
[425205551,1781577050000,-714.135467,0.00024658,2]
[425205554,1781577050000,-714.135467,0.00024658,2]
[425205560,1781577050000,-714.135467,0.00024658,2]
[425205553,1781577050000,-714.135467,0.00024658,2]
[425205552,1781577050000,-714.135467,0.00024658,2]
[425205555,1781577050000,-714.135467,0.00024658,2]
[425205562,1781577050000,-1000.0,0.00024658,2]
[425205559,1781577050000,-714.135467,0.00024658,2]
[425205556,1781577050000,-714.135467,0.00024658,2]
[425205561,1781577050000,-714.135467,0.00024658,2]
[425205558,1781577050000,-714.135467,0.00024658,2]
[425205570,1781577050000,-714.135476,0.00024658,2]
[425205557,1781577050000,-714.135467,0.00024658,2]
[425205567,1781577050000,-714.135467,0.00024658,2]
[425205568,1781577050000,-714.135467,0.00024658,2]
[425205572,1781577050000,-1553.62240062,0.00024658,2]
[425205571,1781577050000,-150.0,0.00024658,2]
[425205569,1781577050000,-714.135467,0.00024658,2]
[425205574,1781577050000,-714.16561513,0.00024816,2]
[425205564,1781577050000,-714.135467,0.00024658,2]
[425205575,1781577050000,-746.52292368,0.00024868,2]
[425205565,1781577050000,-714.135467,0.00024658,2]
[425205563,1781577050000,-714.135467,0.00024658,2]
[425205566,1781577050000,-714.135467,0.00024658,2]
[425205651,1781577051000,-152.0,0.00025549,6]
[425205648,1781577051000,-500.0,0.00025493,2]
[425205645,1781577051000,-500.0,0.00025493,2]
[425205644,1781577051000,-500.0,0.00025493,2]
[425205643,1781577051000,-500.0,0.00025493,2]
[425205641,1781577051000,-500.0,0.00025493,2]
[425205650,1781577051000,-1560.31655234,0.0002553,2]
[425205647,1781577051000,-500.0,0.00025493,2]
[425205640,1781577051000,-500.0,0.00025493,2]
[425205649,1781577051000,-802.0,0.00025493,2]
[425205646,1781577051000,-500.0,0.00025493,2]
[425205653,1781577051000,-207.49,0.00025791,2]
[425205642,1781577051000,-500.0,0.00025493,2]
[425205654,1781577051000,-1553.62240062,0.0002589,2]
[425205669,1781577051000,-300.0,0.00026199,10]
[425205657,1781577051000,-1000.0,0.00026,12]
[425205656,1781577051000,-300.0,0.00025999,10]
[425205652,1781577051000,-446.14,0.00025644,2]
[425205655,1781577051000,-500.0,0.00025943,2]
[425205658,1781577051000,-27485.04538076,0.00026,10]